bitfinex-derivatives/quotes_ETHF0:USTF0_20250627
["timestamp","ask_amount","ask_price","bid_price","bid_amount"]
[1751045478648,9.43592501,2415.2,2415.1,50.70554]
[1751045479259,1.10900022,2415.2,2415.1,48.64104]
[1751045479452,0.09082479,2415.2,2415.1,48.64104]
[1751045479949,4.79e-06,2415.2,2415.1,47.96504]
[1751045480840,4.9903,2415.9,2415.8,0.8276]
[1751045481041,3.9416,2416.2,2415.8,43.26134381]
[1751045481253,1.30247874,2416.1,2416.0,0.82752]
[1751045481456,8.9319,2416.2,2416.0,26.68452]
[1751045481944,9.75937,2416.2,2416.0,26.68452]
[1751045482147,8.9319,2416.2,2416.1,0.8275]
[1751045482955,8.9319,2416.2,2416.1,1.4407]
[1751045483452,5.7241,2416.2,2416.1,2.2682]
[1751045483655,0.7368,2416.5,2416.1,11.98404381]
[1751045483849,0.7368,2416.5,2416.2,32.695]
[1751045483850,1.56417,2416.5,2416.2,32.695]
[1751045484050,1.11423,2416.4,2416.2,33.52245]
[1751045484551,0.2868,2416.4,2416.3,40.8]
[1751045484756,1.1142,2416.4,2416.3,40.8]
[1751045484956,10.55012501,2416.4,2416.3,40.8]
[1751045485550,10.55012501,2416.4,2416.3,73.488]
[1751045485751,0.82752,2416.1,2415.8,4.03537]
[1751045485956,0.82757,2416.0,2415.9,32.69]
[1751045486252,1.50987,2416.0,2415.9,32.69]
[1751045487257,0.6823,2416.0,2415.9,33.51757]
[1751045487455,1.50983,2416.0,2415.9,32.69]
[1751045487859,0.6823,2416.0,2415.9,33.52157]
[1751045488453,1.50983,2416.0,2415.9,32.694]
[1751045489054,1.50983,2416.0,2415.8,0.82758]
[1751045489361,0.82767,2415.6,2415.5,47.691]
[1751045489659,0.82763,2415.7,2415.5,81.19368]
[1751045489850,0.82763,2415.7,2415.5,121.99368]
[1751045490259,0.82762,2415.8,2415.6,0.82767]
[1751045490557,0.8276,2415.8,2415.7,25.827]
[1751045491259,0.8276,2415.8,2415.7,32.683]
[1751045491560,2.2115,2415.8,2415.7,32.683]
[1751045492255,2.2115,2415.8,2415.7,6.856]
[1751045492461,11.64742501,2415.8,2415.7,32.666]
[1751045492661,11.64742501,2415.8,2415.7,6.856]
[1751045492861,11.64742501,2415.8,2415.7,32.666]
[1751045493058,0.82767,2415.6,2415.5,47.691]
[1751045493258,0.82767,2415.6,2415.5,80.353]
[1751045493564,0.82767,2415.6,2415.4,40.8]
[1751045493565,0.8277,2415.5,2415.4,40.8]
[1751045493755,1.3974,2415.5,2415.3,6.856]
[1751045493955,2.25994,2415.4,2415.3,31.5707]
[1751045494455,2.25994,2415.4,2415.3,5.7497]
[1751045495260,11.69586501,2415.4,2415.3,5.7497]
[1751045497257,0.82787,2415.0,2414.9,47.68]
[1751045497458,0.82787,2415.0,2414.9,80.335]
[1751045499653,0.82787,2415.0,2414.9,81.16291]
[1751045499857,3.2078,2415.2,2415.0,0.82785]
[1751045499858,0.82785,2415.1,2415.0,0.82785]
[1751045500057,0.82787,2415.0,2414.9,81.16289]
[1751045501056,10.26379501,2415.1,2414.9,81.16289]
[1751045501365,0.82787,2415.0,2414.9,80.335]
[1751045501566,10.26378501,2415.1,2414.9,81.16289]
[1751045501965,10.26378501,2415.1,2415.0,0.82787]
[1751045502262,10.26378501,2415.1,2414.9,81.16288]
[1751045502662,10.26378501,2415.1,2414.9,80.335]
[1751045502858,0.82787,2415.0,2414.9,80.335]
[1751045504165,0.82787,2415.0,2414.9,47.68]
[1751045504367,0.82787,2415.0,2414.9,80.29]
[1751045504772,5.81817,2415.0,2414.9,80.29]
[1751045504971,7.25157,2415.0,2414.9,80.284]
[1751045505157,5.81817,2415.0,2414.9,80.284]
[1751045505466,15.25409501,2415.0,2414.9,80.284]
[1751045505661,15.25409501,2415.0,2414.9,81.11191]
[1751045505966,15.25409501,2415.0,2414.9,80.284]
[1751045507761,15.25409501,2415.0,2414.9,80.267]
[1751045509067,15.25409501,2415.0,2414.9,80.263]
[1751045509362,15.25409501,2415.0,2414.9,54.538]
[1751045509558,15.25409501,2415.0,2414.9,80.262]
[1751045510477,0.828,2414.7,2414.6,0.82799]
[1751045510672,0.828,2414.7,2414.6,6.858]
[1751045510871,0.828,2414.7,2414.6,33.39601]
[1751045511367,1.54596,2414.8,2414.7,0.82798]
[1751045511770,0.828,2414.7,2414.6,0.82799]
[1751045511963,6.53626,2414.8,2414.7,0.82798]
[1751045512273,0.82802,2414.6,2414.5,6.858]
[1751045512475,4.03582,2414.6,2414.5,32.576]
[1751045513272,4.03581,2414.6,2414.5,6.858]
[1751045513574,3.2078,2414.6,2414.2,89.32012]
[1751045513772,3.2078,2414.6,2414.2,88.492]
[1751045513969,0.82811,2414.3,2414.2,47.692]
[1751045514477,0.82811,2414.3,2414.2,80.268]
[1751045514669,0.82811,2414.3,2414.2,54.551]
[1751045514973,0.82811,2414.3,2414.2,80.268]
[1751045515169,10.26403501,2414.3,2414.2,80.268]
[1751045515379,10.26403501,2414.3,2414.2,47.692]
[1751045515673,9.43592501,2414.3,2414.2,80.268]
[1751045515877,9.43592501,2414.3,2414.2,88.43169381]
[1751045516171,9.43592501,2414.3,2414.2,93.43169381]
[1751045518177,8.32972501,2414.3,2414.2,93.43169381]
[1751045518474,8.32972501,2414.3,2414.2,134.23169381]
[1751045518865,8.32972501,2414.3,2414.2,101.65569381]
[1751045519281,8.32972501,2414.3,2414.2,129.23769381]
[1751045522972,9.15783501,2414.3,2414.2,47.692]
[1751045523171,9.15783501,2414.3,2414.2,80.183]
[1751045523367,14.14813501,2414.3,2414.2,80.183]
[1751045523574,13.32002501,2414.3,2414.2,81.01115]
[1751045523781,8.32972501,2414.3,2414.2,81.01115]
[1751045523977,8.32972501,2414.3,2414.2,89.71139381]
[1751045525770,11.53752501,2414.3,2413.4,3.2078]
[1751045526074,2.0796,2414.2,2413.8,4.03609]
[1751045526275,0.6693,2414.1,2414.0,0.82822]
[1751045526474,0.7102,2414.2,2414.0,0.82822]
[1751045526668,6.52867,2414.2,2413.9,40.95577381]
[1751045526874,0.82825,2413.9,2413.8,3.2078]
[1751045527068,0.82828,2413.9,2413.8,32.792]
[1751045527980,0.82828,2413.9,2413.7,47.701]
[1751045528176,2.86699,2413.8,2413.7,47.701]
[1751045529371,2.86699,2413.8,2413.7,80.492]
[1751045529785,2.86699,2413.8,2413.5,0.82837]
[1751045529979,0.7351,2413.7,2413.6,7.61235]
[1751045530277,0.7351,2413.7,2413.4,4.0362]
[1751045530278,3.00122,2413.7,2413.4,4.0362]
[1751045530581,0.82835,2413.6,2413.5,32.802]
[1751045530778,1.4378,2413.6,2413.5,32.796]
[1751045531075,6.4281,2413.6,2413.5,6.784]
[1751045531281,14.6359,2413.6,2413.2,32.79]
[1751045531477,4.6456,2413.6,2413.2,32.79]
[1751045531786,3.7897,2413.4,2413.3,0.82842]
[1751045532084,3.7897,2413.4,2413.3,26.87042]
[1751045532579,3.7897,2413.4,2413.3,31.87042]
[1751045532879,8.99902501,2413.8,2413.7,0.82832]
[1751045533069,8.32972501,2413.8,2413.7,33.65632]
[1751045533475,8.75632501,2413.8,2413.7,33.65632]
[1751045533869,8.75632501,2413.8,2413.7,38.65632]
[1751045534081,8.32972501,2413.8,2413.7,86.36832]
[1751045534872,7.39400501,2413.8,2413.7,86.36832]
[1751045535072,4.9903,2414.2,2414.1,0.82818]
[1751045535270,3.2078,2414.9,2414.8,0.82794]
[1751045535477,1.30455646,2414.9,2414.8,74.46194]
[1751045535669,1.30455646,2414.9,2414.8,77.66974]
[1751045536477,1.30455646,2414.9,2414.8,82.66974]
[1751045536669,1.30455646,2414.9,2414.8,44.83574]
[1751045536874,1.30455646,2414.9,2414.8,77.67674]
[1751045537278,1.30455646,2414.9,2414.8,82.67674]
[1751045538177,10.74048147,2414.9,2414.8,82.67674]
[1751045538376,10.74048147,2414.9,2414.8,44.83574]
[1751045538577,10.74048147,2414.9,2414.8,77.69074]
[1751045540081,10.74048147,2414.9,2414.8,44.83574]
[1751045540289,10.74048147,2414.9,2414.8,77.69274]
[1751045540782,10.74048147,2414.9,2414.8,82.69274]
[1751045541087,9.43592501,2414.9,2414.8,82.69274]
[1751045541287,9.43592501,2414.9,2414.8,84.09274]
[1751045542179,9.43592501,2414.9,2414.8,79.09274]
[1751045542391,10.73736247,2414.9,2414.8,79.09274]
[1751045542582,9.43592501,2414.9,2414.8,79.09274]
[1751045542782,10.73736901,2414.9,2414.8,79.09274]
[1751045542987,9.43592501,2414.9,2414.8,79.09274]
[1751045543584,5.13434712,2414.9,2414.8,84.09274]
[1751045543791,1.17654923,2414.9,2414.8,84.09274]
[1751045544083,9.23e-06,2414.9,2414.8,79.09274]
[1751045544288,0.6923,2415.4,2415.3,0.82777]
[1751045544590,1.99374203,2415.4,2415.3,33.64577]
[1751045544981,0.6923,2415.4,2415.3,33.64577]
[1751045545484,0.6923,2415.4,2415.3,33.63677]
[1751045547385,10.12822501,2415.4,2415.3,33.63677]
[1751045547786,9.43592501,2415.4,2415.3,33.63677]
[1751045548189,9.43592501,2415.4,2415.3,33.60277]
[1751045548694,9.43592501,2415.4,2415.3,0.82777]
[1751045548884,9.43592501,2415.4,2415.3,33.59677]
[1751045549285,14.42622501,2415.4,2415.3,74.39677]
[1751045550085,14.42622501,2415.4,2415.3,73.569]
[1751045550594,15.25396501,2415.4,2415.3,40.8]
[1751045550780,16.70086501,2415.4,2415.2,0.82779]
[1751045550986,15.87312501,2415.4,2414.9,3.2078]
[1751045551186,15.87312501,2415.4,2415.0,73.558]
[1751045551484,15.87312501,2415.4,2415.2,0.8278]
[1751045551686,15.87312501,2415.4,2415.3,26.79977]
[1751045551890,15.87312501,2415.4,2415.3,25.972]
[1751045552395,15.87312501,2415.4,2415.2,0.82778]
[1751045552689,15.87312501,2415.4,2415.3,0.82777]
[1751045552881,15.87312501,2415.4,2415.3,32.929]
[1751045553088,15.87312501,2415.4,2415.3,33.75677]
[1751045555995,14.42622501,2415.4,2415.3,33.75677]
[1751045557494,14.42622501,2415.4,2415.3,33.72077]
[1751045559005,9.43592501,2415.4,2415.3,33.72077]
[1751045559297,9.43592501,2415.4,2415.3,33.71077]
[1751045559605,9.43592501,2415.4,2415.3,0.82777]
[1751045559806,9.43592501,2415.4,2415.3,33.70677]
[1751045561910,7.18547501,2415.4,2415.3,38.70677]
[1751045562101,3.92328501,2415.4,2415.3,40.10977]
[1751045562306,2.68754501,2415.4,2415.3,40.10977]
[1751045562507,1.65304501,2415.4,2415.3,40.10977]
[1751045562807,0.63299501,2415.4,2415.3,40.10977]
[1751045563008,0.7287,2415.7,2415.6,0.82767]
[1751045563313,0.7287,2415.7,2415.6,84.97101381]
[1751045564410,4.9903,2416.0,2415.9,0.82757]
[1751045564715,0.7226,2416.4,2416.3,0.82743]
[1751045564913,3.48109186,2416.4,2416.3,6.947]
[1751045565114,8.47139186,2416.4,2416.3,32.85]
[1751045565813,9.29878186,2416.4,2416.3,32.85]
[1751045566112,8.47139186,2416.4,2416.3,32.85]
[1751045566312,17.90731687,2416.4,2416.3,33.67743]
[1751045566913,17.90731687,2416.4,2416.3,32.85]
[1751045567309,17.90731687,2416.4,2416.3,33.67743]
[1751045567509,17.28192501,2416.4,2416.3,33.67743]
[1751045570008,17.28192501,2416.4,2416.3,32.85]
[1751045570217,18.57591011,2416.4,2416.3,33.67743]
[1751045571816,17.28192501,2416.4,2416.3,33.67743]
[1751045572819,15.81572501,2416.4,2416.3,33.67743]
[1751045573019,10.82542501,2416.4,2416.3,33.67743]
[1751045575013,12.24532501,2416.4,2416.3,33.67743]
[1751045577322,12.24532501,2416.4,2416.3,33.60143]
[1751045578817,12.24532501,2416.4,2416.1,40.8]
[1751045579015,12.24532501,2416.4,2416.3,6.945]
[1751045579215,17.23562501,2416.4,2416.3,6.945]
[1751045579823,17.23562501,2416.4,2416.3,7.77243]
[1751045580621,17.23562501,2416.4,2416.3,33.57843]
[1751045582422,12.24532501,2416.4,2416.3,33.57843]
[1751045582725,12.24532501,2416.4,2416.3,37.41454574]
[1751045583026,17.23562501,2416.4,2416.3,37.41454574]
[1751045583625,15.81572501,2416.4,2416.3,37.41454574]
[1751045583918,14.42622501,2416.4,2416.3,37.41454574]
[1751045584326,14.42622501,2416.4,2416.3,33.57843]
[1751045585418,14.42622501,2416.4,2416.3,0.82743]
[1751045585724,14.42622501,2416.4,2416.3,33.42943]
[1751045585920,9.43592501,2416.4,2416.3,33.42943]
[1751045586333,3.2078,2417.4,2416.3,37.602]
[1751045586625,2.64707899,2417.3,2416.8,3.2078]
[1751045586822,2.64867899,2417.2,2417.1,0.82715]
[1751045587216,2.64867899,2417.2,2417.1,33.44415]
[1751045587518,6.3416,2417.2,2417.1,33.44415]
[1751045588524,6.3416,2417.2,2417.1,32.617]
[1751045588828,6.3416,2417.2,2417.1,33.44416]
[1751045589427,15.77752501,2417.2,2417.1,33.44416]
[1751045590723,14.42622501,2417.2,2417.1,33.44416]
[1751045595029,9.43592501,2417.2,2417.1,33.44416]
[1751045595429,9.43592501,2417.2,2417.1,44.014734]
[1751045595634,9.43592501,2417.2,2417.1,4.03496]
[1751045595831,9.43592501,2417.2,2417.1,33.39316]
[1751045597930,9.43592501,2417.2,2417.1,0.82716]
[1751045598129,9.43592501,2417.2,2417.1,33.37416]
[1751045598537,14.42622501,2417.2,2417.1,33.37416]
[1751045598735,14.42622501,2417.2,2417.1,32.547]
[1751045599036,0.8273,2416.7,2416.1,3.8915]
[1751045599334,0.7201,2416.6,2416.2,32.562]
[1751045599523,3.59654,2416.6,2416.3,0.82741]
[1751045599836,3.59654,2416.6,2416.4,25.744]
[1751045600136,2.7692,2416.6,2416.5,0.82736]
[1751045600330,2.7692,2416.6,2416.4,25.744]
[1751045600532,2.7692,2416.6,2416.5,0.82736]
[1751045600738,2.7692,2416.6,2416.4,26.57138]
[1751045600933,2.7692,2416.6,2416.3,0.82741]
[1751045601135,0.82741,2416.4,2416.1,4.03528]
[1751045601331,1.3446,2416.3,2416.2,32.559]
[1751045601531,1.3446,2416.3,2416.2,33.38646]
[1751045602828,3.2078,2416.5,2416.4,0.82739]
[1751045603029,4.6544,2416.5,2416.4,26.55539]
[1751045603425,4.9903,2416.5,2416.4,26.55539]
[1751045604633,9.43592501,2416.6,2416.5,0.82736]
[1751045605436,9.43592501,2416.6,2416.4,3.2078]
[1751045605628,13.47106501,2416.6,2416.5,6.827]
[1751045605831,13.47106501,2416.6,2416.5,32.553]
[1751045606038,18.46136501,2416.6,2416.5,32.553]
[1751045606631,18.46136501,2416.6,2416.5,32.561]
[1751045607433,17.63402501,2416.6,2416.1,3.2078]
[1751045607631,10.570574,2416.3,2416.2,6.827]
[1751045607831,11.398004,2416.3,2416.2,32.559]
[1751045608031,9.03523,2416.3,2416.2,32.559]
[1751045608430,4.03523,2416.3,2416.2,32.559]
[1751045609534,4.03523,2416.3,2416.2,6.827]
[1751045609730,4.03523,2416.3,2416.2,32.589]
[1751045610238,13.47115501,2416.3,2416.2,32.589]
[1751045610632,0.82748,2416.2,2415.9,47.654]
[1751045610836,13.47118501,2416.3,2416.1,0.82749]
[1751045611037,13.47118501,2416.3,2416.2,25.757]
[1751045611232,25.00649901,2416.3,2415.9,47.654]
[1751045611432,0.8275,2416.1,2416.0,33.40953]
[1751045611630,0.8275,2416.1,2416.0,7.65553]
[1751045611831,0.82749,2416.2,2416.1,0.82749]
[1751045612039,0.8275,2416.1,2416.0,33.40951]
[1751045612335,0.82749,2416.2,2416.1,0.82748]
[1751045612730,0.82749,2416.2,2416.1,33.37848]
[1751045613245,13.47117501,2416.3,2416.2,0.82746]
[1751045613436,0.82746,2416.2,2416.1,32.551]
[1751045613936,0.82746,2416.2,2416.1,33.3785]
[1751045614443,0.82746,2416.2,2416.1,32.551]
[1751045615142,10.26338501,2416.2,2416.1,32.551]
[1751045615836,0.82753,2416.0,2415.9,47.654]
[1751045616041,4.03533,2416.0,2415.9,80.183]
[1751045617539,4.03533,2416.0,2415.9,80.177]
[1751045617746,9.02563,2416.0,2415.9,80.177]
[1751045618340,9.02563,2416.0,2415.9,47.654]
[1751045618538,9.02563,2416.0,2415.9,80.177]
[1751045618748,9.02563,2416.0,2415.9,47.654]
[1751045618945,9.02563,2416.0,2415.9,80.168]
[1751045619341,9.02563,2416.0,2415.9,80.99557]
[1751045619840,9.02563,2416.0,2415.9,80.168]
[1751045620240,18.46155501,2416.0,2415.9,47.654]
[1751045620446,18.46155501,2416.0,2415.9,80.17]
[1751045620643,18.46155501,2416.0,2415.9,47.654]
[1751045620842,18.46155501,2416.0,2415.9,80.162]
[1751045622253,18.46155501,2416.0,2415.9,47.654]
[1751045622447,18.46155501,2416.0,2415.9,80.16]
[1751045622850,18.46155501,2416.0,2415.9,80.161]
[1751045623153,18.46155501,2416.0,2415.9,54.465]
[1751045623457,18.46155501,2416.0,2415.9,80.158]
[1751045623957,19.86265501,2416.0,2415.9,80.158]
[1751045624656,19.86265501,2416.0,2415.9,80.154]
[1751045624952,0.82767,2415.6,2415.5,0.82769]
[1751045625154,11.50514501,2415.6,2415.2,6.811]
[1751045625453,4.03557,2415.3,2415.2,6.811]
[1751045625650,5.27728,2415.3,2414.6,0.82799]
[1751045625955,0.82794,2414.8,2414.6,25.726]
[1751045626355,0.82796,2414.8,2414.6,26.55401]
[1751045626851,0.717,2415.0,2414.9,0.82791]
[1751045627051,3.2078,2415.2,2415.1,0.82784]
[1751045627251,3.2078,2415.2,2415.1,4.66889958]
[1751045627456,3.2078,2415.2,2415.1,36.38905958]
[1751045627754,6.66881,2415.2,2415.1,36.38905958]
[1751045627956,5.841,2415.2,2415.1,36.38905958]
[1751045628256,5.841,2415.2,2415.1,32.548]
[1751045628853,5.841,2415.2,2414.4,2.39406741]
[1751045629160,7.38583,2415.2,2414.8,0.82791]
[1751045629351,6.558,2415.2,2415.0,0.82786]
[1751045629658,6.558,2415.2,2415.1,32.55]
[1751045629853,6.558,2415.2,2415.1,32.548]
[1751045630256,15.99392501,2415.2,2415.1,32.548]
[1751045630456,16.82173501,2415.2,2415.1,32.548]
[1751045630757,16.10473501,2415.2,2415.1,32.548]
[1751045631350,15.27692501,2415.2,2415.1,32.548]
[1751045631660,16.10473501,2415.2,2415.1,32.548]
[1751045632361,15.27692501,2415.2,2415.1,32.548]
[1751045634069,16.10474501,2415.2,2414.9,0.8279]
[1751045634270,16.10474501,2415.2,2415.1,6.812]
[1751045634669,16.10474501,2415.2,2415.1,32.517]
[1751045635273,0.82784,2415.1,2415.0,0.82787]
[1751045635571,0.82784,2415.1,2415.0,33.33987]
[1751045635964,1.54514,2415.1,2415.0,33.33987]
[1751045636165,0.7173,2415.1,2415.0,33.33987]
[1751045638469,1.54514,2415.1,2415.0,0.82787]
[1751045638671,2.97024,2415.1,2415.0,33.32187]
[1751045639369,2.97024,2415.1,2415.0,32.494]
[1751045639770,0.82791,2414.9,2414.6,3.8902]
[1751045639971,0.82791,2414.9,2414.7,33.31395]
[1751045640178,4.03574,2414.9,2414.8,25.67]
[1751045640675,3.2078,2414.9,2414.8,6.813]
[1751045640876,6.18981,2414.9,2414.8,32.483]
[1751045641469,15.62573501,2414.9,2414.8,32.483]
[1751045642076,0.82801,2414.6,2414.5,0.82802]
[1751045642263,0.82801,2414.6,2414.5,7.64102]
[1751045642466,14.79782501,2414.9,2414.5,32.482]
[1751045642669,14.20063501,2414.9,2414.8,0.82794]
[1751045642984,14.20063501,2414.9,2414.8,26.49494]
[1751045643174,13.37272501,2414.9,2414.8,26.49494]
[1751045644073,12.64372501,2414.9,2414.8,26.49494]
[1751045644478,14.42622501,2414.9,2414.8,26.49494]
[1751045645073,9.43592501,2414.9,2414.8,26.49494]
[1751045646674,8.36301501,2414.9,2414.8,31.49494]
[1751045646878,6.29199879,2414.9,2414.8,31.49494]
[1751045647274,6.29199879,2414.9,2414.8,72.29494]
[1751045647773,2.26648111,2414.9,2414.8,72.29494]
[1751045647979,1.0839,2415.4,2415.3,0.82777]
[1751045648176,0.0853,2415.7,2415.4,0.82774]
[1751045648385,0.0853,2415.7,2415.6,3.2078]
[1751045648588,0.0853,2415.7,2415.6,11.4060208]
[1751045648887,0.0853,2415.7,2415.6,12.7773208]
[1751045649078,3.2078,2416.1,2415.9,0.82755]
[1751045649280,3.2078,2416.1,2416.0,32.423]
[1751045649476,4.51047865,2416.1,2416.0,32.423]
[1751045650075,6.9404095,2416.1,2416.0,32.423]
[1751045650277,7.7679095,2416.1,2416.0,32.423]
[1751045650679,6.9404095,2416.1,2415.6,4.03544]
[1751045650880,4.4247095,2416.0,2415.7,32.417]
[1751045651082,1.30267865,2415.9,2415.7,33.24462]
[1751045651385,1.30267865,2415.8,2415.7,33.24462]
[1751045651776,5.34197085,2416.0,2415.7,33.24462]
[1751045651777,1.30267865,2415.9,2415.7,33.24462]
[1751045651978,1.30267865,2415.8,2415.7,33.24462]
[1751045652288,3.12203085,2416.0,2415.9,0.82757]
[1751045652483,4.42506959,2416.0,2415.9,26.48757]
[1751045652686,3.73296959,2416.0,2415.9,26.48757]
[1751045652888,12.64372501,2416.1,2416.0,0.82753]
[1751045653386,17.63402501,2416.1,2416.0,0.82753]
[1751045654683,8.49956501,2416.1,2416.0,7.28293]
[1751045654879,8.49956501,2416.1,2416.0,7.61800459]
[1751045655086,6.53141501,2416.1,2416.0,7.61800459]
[1751045655278,2.8391,2416.6,2416.5,0.82736]
[1751045655573,0.0213,2416.9,2416.8,0.82726]
[1751045655777,0.0213,2416.9,2416.8,37.0806108]
[1751045655974,4.6233,2417.3,2417.1,0.82713]
[1751045656178,4.6233,2417.3,2417.2,32.432]
[1751045657075,4.6233,2417.3,2417.0,0.82718]
[1751045657076,0.82716,2417.1,2417.0,6.759]
[1751045657281,8.1977108,2417.1,2417.0,5.6526]
[1751045657587,0.82724,2416.9,2416.8,6.759]
[1751045657791,4.03504,2416.9,2416.8,32.45]
[1751045658184,5.48594,2416.9,2416.8,32.45]
[1751045659191,4.6587,2416.9,2416.8,32.45]
[1751045659389,5.48592,2416.9,2416.7,0.82728]
[1751045659591,5.48592,2416.9,2416.8,32.446]
[1751045659890,4.6587,2416.9,2416.8,33.27326]
[1751045660284,14.09462501,2416.9,2416.5,40.8]
[1751045660489,14.92184501,2416.9,2416.8,6.758]
[1751045660688,14.92184501,2416.9,2416.8,32.431]
[1751045660884,14.09462501,2416.9,2416.8,33.25426]
[1751045661385,14.09462501,2416.9,2416.5,40.8]
[1751045661589,1.50487,2416.8,2416.6,33.25331]
[1751045661783,1.348,2416.7,2416.6,33.25331]
[1751045662293,12.64372501,2416.9,2416.5,40.8]
[1751045662493,9.43592501,2416.9,2416.7,0.82727]
[1751045662784,10.82892501,2416.9,2416.8,26.50226]
[1751045662989,11.65614501,2416.9,2416.6,0.82731]
[1751045663185,11.65614501,2416.9,2416.8,32.432]
[1751045663392,10.82892501,2416.9,2416.8,32.432]
[1751045663587,10.82892501,2416.9,2416.8,33.25926]
[1751045663788,9.43592501,2416.9,2416.8,33.25926]
[1751045664784,9.43592501,2416.9,2416.8,33.28926]
[1751045665188,14.43442501,2416.9,2416.8,33.28926]
[1751045665886,9.43592501,2416.9,2416.7,3.2078]
[1751045666092,10.26315501,2416.9,2416.8,32.452]
[1751045666292,9.43592501,2416.9,2416.8,33.27926]
[1751045667192,9.43592501,2416.9,2416.8,34.64796]
[1751045668889,9.43592501,2416.9,2416.7,3.2078]
[1751045669194,9.43592501,2416.9,2416.8,33.27226]
[1751045669494,14.43442501,2416.9,2416.8,33.27226]
[1751045670494,14.43442501,2416.9,2416.8,6.756]
[1751045670693,15.87382501,2416.9,2416.8,32.431]
[1751045670992,0.82726,2416.8,2416.7,3.2078]
[1751045671190,2.26666,2416.8,2416.7,35.6398]
[1751045671892,1.4394,2416.8,2416.7,35.6398]
[1751045672295,2.26666,2416.8,2416.7,6.756]
[1751045672496,1.4394,2416.8,2416.7,32.424]
[1751045672696,6.4379,2416.8,2416.7,33.25129]
[1751045674096,9.43592501,2416.9,2416.7,33.25129]
[1751045674097,9.43592501,2416.9,2416.8,0.82726]
[1751045675199,9.43592501,2416.9,2416.8,2.16616]
[1751045675900,9.43592501,2416.9,2416.8,7.16616]
[1751045676391,9.43592501,2416.9,2416.8,2.16616]
[1751045676592,9.43592501,2416.9,2416.8,42.96616]
[1751045676892,2.84808501,2416.9,2416.8,47.96616]
[1751045677096,0.6954,2417.6,2417.5,0.82702]
[1751045677297,0.6954,2417.6,2417.5,33.27202]
[1751045677298,1.99690704,2417.6,2417.5,33.27202]
[1751045677601,0.6954,2417.6,2417.5,33.27202]
[1751045677796,0.7323,2417.6,2417.5,33.27202]
[1751045678194,2.03416093,2417.6,2417.5,33.27202]
[1751045678397,0.7323,2417.6,2417.5,33.27202]
[1751045678600,7.1925,2417.7,2417.6,0.82698]
[1751045678804,8.49428384,2417.7,2417.6,0.82698]
[1751045679105,3.9847,2417.7,2417.6,4.03478]
[1751045679400,3.9847,2417.7,2417.6,32.439]
[1751045679789,3.9847,2417.7,2417.6,33.26598]
[1751045680101,3.9847,2417.7,2417.6,40.6365308]
[1751045680403,0.82693,2417.8,2417.5,4.0348]
[1751045680601,0.82694,2417.8,2417.6,32.437]
[1751045680789,2.161,2417.7,2417.5,3.2078]
[1751045680993,0.827,2417.6,2417.3,47.658]
[1751045681207,1.4492,2417.6,2417.4,32.43]
[1751045681390,1.4492,2417.6,2417.5,0.82702]
[1751045681593,15.14452501,2417.7,2417.6,0.82698]
[1751045681995,15.14452501,2417.7,2417.6,25.665]
[1751045682701,16.59372501,2417.7,2417.6,25.665]
[1751045682900,16.59372501,2417.7,2417.6,32.425]
[1751045683599,16.59372501,2417.7,2417.6,33.25198]
[1751045683995,16.59372501,2417.7,2417.6,32.425]
[1751045684200,17.89873924,2417.7,2417.6,33.25198]
[1751045684591,17.89873924,2417.7,2417.6,32.425]
[1751045685001,16.59372501,2417.7,2417.6,33.25198]
[1751045685303,17.89845976,2417.7,2417.6,33.25198]
[1751045685803,16.44925976,2417.7,2417.6,33.25198]
[1751045686105,15.14452501,2417.7,2417.6,33.25198]
[1751045686598,14.43272501,2417.7,2417.6,33.25198]
[1751045688705,9.43592501,2417.7,2417.6,33.25198]
[1751045689594,9.43592501,2417.7,2417.6,34.58138]
[1751045689799,9.43592501,2417.7,2417.6,33.25198]
[1751045691102,9.43592501,2417.7,2417.6,34.71998]
[1751045691706,9.43592501,2417.7,2417.6,35.05606023]
[1751045692500,9.43592501,2417.7,2417.6,40.05606023]
[1751045692896,4.9968,2418.1,2418.0,0.82685]
[1751045693101,0.6844,2418.4,2418.3,0.82674]
[1751045693398,1.3034684,2418.4,2418.3,77.0123508]
[1751045693611,1.3034684,2418.4,2418.3,82.8390908]
[1751045693802,1.3034684,2418.4,2418.3,84.2579908]
[1751045694005,3.2078,2418.9,2418.8,0.82657]
[1751045694204,4.51148332,2418.9,2418.8,33.22457]
[1751045694405,6.65348332,2418.9,2418.8,33.22457]
[1751045694906,6.65348332,2418.9,2418.8,32.394]
[1751045695101,6.65348332,2418.9,2418.3,44.0078]
[1751045695102,0.8266,2418.8,2418.3,44.0078]
[1751045695302,2.65698332,2418.7,2418.4,32.394]
[1751045695507,1.3533,2418.7,2418.6,0.82664]
[1751045695809,2.65545782,2418.7,2418.6,0.82664]
[1751045696108,7.65225782,2418.7,2418.6,0.82664]
[1751045696315,7.65225782,2418.7,2418.5,32.394]
[1751045696506,1.30215782,2418.6,2418.5,33.22065]
[1751045697809,1.30215782,2418.6,2418.3,44.0078]
[1751045698005,0.6811,2418.5,2418.4,32.391]
[1751045698500,3.2078,2418.9,2418.4,32.391]
[1751045698705,4.9968,2418.5,2418.4,36.42551]
[1751045698913,4.9968,2418.5,2418.4,33.21771]
[1751045699119,4.9968,2418.5,2418.4,77.22551]
[1751045699709,0.6811,2418.8,2418.6,0.82661]
[1751045699909,7.0473,2418.8,2418.7,25.628]
[1751045700321,7.87387,2418.8,2418.7,25.628]
[1751045700612,7.0473,2418.8,2418.4,41.62669]
[1751045700811,0.82662,2418.7,2418.5,32.39]